[Event "Titled Tuesday Blitz August 15 Late 2023"]
[White "SmirnovAlexandrA"]
[Black "szachmistrz2500"]
[WhiteElo "2621"]
[BlackElo "2498"]
[Result "1-0"]
[Round "7"]
[TimeControl "180+1"]
[Date "2023.08.15"]
[WhiteClock "0:00:27"]
[BlackClock "0:00:35"]
[Board "51"]

1. e4 {[%clk 0:02:56]}  c5 {[%clk 0:02:59]} 2. Nf3 {[%clk 0:02:56]}  e6 {[%clk 0:03:00]} 3. g3 {[%clk 0:02:55]}  a6 {[%clk 0:02:54]} 4. Bg2 {[%clk 0:02:54]}  Nc6 {[%clk 0:02:51]} 5. O-O {[%clk 0:02:54]}  Nf6 {[%clk 0:02:50]} 6. e5 {[%clk 0:02:49]}  Ng4 {[%clk 0:02:47]} 7. Re1 {[%clk 0:02:49]}  Qc7 {[%clk 0:02:48]} 8. Qe2 {[%clk 0:02:46]}  f6 {[%clk 0:02:45]} 9. d4 {[%clk 0:02:36]}  cxd4 {[%clk 0:02:44]} 10. exf6 {[%clk 0:02:37]}  Nxf6 {[%clk 0:02:43]} 11. c3 {[%clk 0:02:37]}  Bd6 {[%clk 0:02:18]} 12. cxd4 {[%clk 0:02:32]}  O-O {[%clk 0:02:18]} 13. Nc3 {[%clk 0:02:33]}  Nb4 {[%clk 0:02:16]} 14. a3 {[%clk 0:02:26]}  Nbd5 {[%clk 0:02:14]} 15. Bd2 {[%clk 0:02:27]}  b6 {[%clk 0:02:13]} 16. Rac1 {[%clk 0:02:22]}  Qd8 {[%clk 0:02:13]} 17. Ne5 {[%clk 0:02:13]}  Bb7 {[%clk 0:02:10]} 18. Ne4 {[%clk 0:02:13]}  Nxe4 {[%clk 0:02:04]} 19. Bxe4 {[%clk 0:02:14]}  Bxe5 {[%clk 0:01:50]} 20. dxe5 {[%clk 0:02:13]}  Qe7 {[%clk 0:01:39]} 21. Bxd5 {[%clk 0:02:02]}  Bxd5 {[%clk 0:01:37]} 22. Bb4 {[%clk 0:02:02]}  Qf7 {[%clk 0:01:33]} 23. Bxf8 {[%clk 0:02:02]}  Bf3 {[%clk 0:01:29]} 24. Qe3 {[%clk 0:01:52]}  Rxf8 {[%clk 0:01:28]} 25. Rc3 {[%clk 0:01:41]}  Qh5 {[%clk 0:01:26]} 26. Qxb6 {[%clk 0:01:28]}  Bd5 {[%clk 0:01:15]} 27. Rd3 {[%clk 0:01:17]}  Bc6 {[%clk 0:01:13]} 28. Qxa6 {[%clk 0:01:11]}  Rf3 {[%clk 0:01:02]} 29. Red1 {[%clk 0:00:57]}  h6 {[%clk 0:00:54]} 30. Rxd7 {[%clk 0:00:51]}  Rxf2 {[%clk 0:00:41]} 31. Rd8+ {[%clk 0:00:38]}  Kh7 {[%clk 0:00:39]} 32. Kxf2 {[%clk 0:00:38]}  Qxh2+ {[%clk 0:00:38]} 33. Ke3 {[%clk 0:00:34]}  Qxg3+ {[%clk 0:00:38]} 34. Kd4 {[%clk 0:00:34]}  Qf4+ {[%clk 0:00:37]} 35. Kc5 {[%clk 0:00:30]}  Bf3 {[%clk 0:00:37]} 36. Qd3+ {[%clk 0:00:28]}  Be4 {[%clk 0:00:37]} 37. Qd4 {[%clk 0:00:27]}  Bf5 {[%clk 0:00:35]} 38. Qxf4 {[%clk 0:00:27]} 1-0


[Site "https://www.chess.com"]

[Event "Titled Tuesday Blitz August 15 Late 2023"]
[White "Nathan, Nitish"]
[Black "Chor, Kevin"]
[WhiteFideId "30927870"]
[BlackFideId "2090740"]
[WhiteElo "2479"]
[BlackElo "2578"]
[Result "1/2-1/2"]
[Round "7"]
[TimeControl "180+1"]
[Date "2023.08.15"]
[WhiteClock "0:01:30"]
[BlackClock "0:00:18"]
[Board "55"]

1. d4 {[%clk 0:03:00]}  Nf6 {[%clk 0:02:59]} 2. Bf4 {[%clk 0:03:00]}  g6 {[%clk 0:02:59]} 3. e3 {[%clk 0:03:00]}  Bg7 {[%clk 0:03:00]} 4. Nf3 {[%clk 0:03:01]}  d6 {[%clk 0:03:00]} 5. h3 {[%clk 0:03:01]}  O-O {[%clk 0:03:01]} 6. Be2 {[%clk 0:03:02]}  b6 {[%clk 0:03:01]} 7. O-O {[%clk 0:03:02]}  Bb7 {[%clk 0:03:02]} 8. c4 {[%clk 0:03:02]}  Nbd7 {[%clk 0:03:03]} 9. Nc3 {[%clk 0:03:03]}  Re8 {[%clk 0:03:02]} 10. Bh2 {[%clk 0:02:58]}  e5 {[%clk 0:03:03]} 11. b4 {[%clk 0:02:58]}  e4 {[%clk 0:03:00]} 12. Nd2 {[%clk 0:02:58]}  Nf8 {[%clk 0:02:56]} 13. Qc2 {[%clk 0:02:56]}  Qe7 {[%clk 0:02:53]} 14. Nb3 {[%clk 0:02:54]}  h5 {[%clk 0:02:52]} 15. c5 {[%clk 0:02:52]}  Ne6 {[%clk 0:02:41]} 16. Nb5 {[%clk 0:02:46]}  dxc5 {[%clk 0:02:29]} 17. bxc5 {[%clk 0:02:45]}  a6 {[%clk 0:02:20]} 18. c6 {[%clk 0:02:40]}  Bc8 {[%clk 0:02:13]} 19. Nc3 {[%clk 0:02:39]}  Ng5 {[%clk 0:02:10]} 20. h4 {[%clk 0:02:34]}  Ne6 {[%clk 0:02:03]} 21. Nxe4 {[%clk 0:02:31]}  Ng4 {[%clk 0:01:29]} 22. Bg3 {[%clk 0:02:10]}  f5 {[%clk 0:01:16]} 23. Nc3 {[%clk 0:02:08]}  f4 {[%clk 0:01:06]} 24. exf4 {[%clk 0:02:06]}  Nxd4 {[%clk 0:01:06]} 25. Nxd4 {[%clk 0:02:03]}  Bxd4 {[%clk 0:01:07]} 26. Qxg6+ {[%clk 0:02:03]}  Bg7 {[%clk 0:01:01]} 27. Bc4+ {[%clk 0:01:59]}  Be6 {[%clk 0:00:57]} 28. Rae1 {[%clk 0:01:54]}  Bxc4 {[%clk 0:00:47]} 29. Rxe7 {[%clk 0:01:53]}  Rxe7 {[%clk 0:00:48]} 30. Rd1 {[%clk 0:01:51]}  Rae8 {[%clk 0:00:45]} 31. f3 {[%clk 0:01:47]}  Nf6 {[%clk 0:00:11]} 32. Ne4 {[%clk 0:01:47]}  Nxe4 {[%clk 0:00:06]} 33. fxe4 {[%clk 0:01:48]}  Bf7 {[%clk 0:00:06]} 34. Qf5 {[%clk 0:01:46]}  Rxe4 {[%clk 0:00:06]} 35. Qd7 {[%clk 0:01:44]}  R8e7 {[%clk 0:00:04]} 36. Qc8+ {[%clk 0:01:43]}  Kh7 {[%clk 0:00:04]} 37. Rd7 {[%clk 0:01:31]}  Be6 {[%clk 0:00:02]} 38. Rxe7 {[%clk 0:01:31]}  Bxc8 {[%clk 0:00:01]} 39. Rxe4 {[%clk 0:01:32]}  Bf5 {[%clk 0:00:01]} 40. Re7 {[%clk 0:01:32]}  Bb1 {[%clk 0:00:02]} 41. Rxc7 {[%clk 0:01:31]}  Bxa2 {[%clk 0:00:03]} 42. Rb7 {[%clk 0:01:31]}  Bd5 {[%clk 0:00:03]} 43. Rxb6 {[%clk 0:01:29]}  Bd4+ {[%clk 0:00:03]} 44. Bf2 {[%clk 0:01:28]}  Bxb6 {[%clk 0:00:04]} 45. Bxb6 {[%clk 0:01:28]}  Bxc6 {[%clk 0:00:05]} 46. Ba5 {[%clk 0:01:27]}  Kg6 {[%clk 0:00:05]} 47. Kf2 {[%clk 0:01:26]}  Kf5 {[%clk 0:00:06]} 48. g3 {[%clk 0:01:25]}  Bb5 {[%clk 0:00:06]} 49. Kf3 {[%clk 0:01:24]}  Bc6+ {[%clk 0:00:07]} 50. Kf2 {[%clk 0:01:24]}  Bb5 {[%clk 0:00:07]} 51. Ke3 {[%clk 0:01:24]}  Kg4 {[%clk 0:00:07]} 52. Be1 {[%clk 0:01:23]}  Bc6 {[%clk 0:00:07]} 53. Kd4 {[%clk 0:01:23]}  Kf5 {[%clk 0:00:06]} 54. Kc5 {[%clk 0:01:23]}  Bb5 {[%clk 0:00:07]} 55. Kd6 {[%clk 0:01:23]}  Bf1 {[%clk 0:00:06]} 56. Ke7 {[%clk 0:01:23]}  Be2 {[%clk 0:00:07]} 57. Kf7 {[%clk 0:01:22]}  Bd3 {[%clk 0:00:07]} 58. Kg7 {[%clk 0:01:22]}  Be2 {[%clk 0:00:08]} 59. Kh6 {[%clk 0:01:22]}  Bf3 {[%clk 0:00:08]} 60. Ba5 {[%clk 0:01:19]}  Be2 {[%clk 0:00:06]} 61. Be1 {[%clk 0:01:19]}  Bf3 {[%clk 0:00:06]} 62. Kh7 {[%clk 0:01:20]}  Be2 {[%clk 0:00:07]} 63. Kg7 {[%clk 0:01:20]}  Bf3 {[%clk 0:00:07]} 64. Kf7 {[%clk 0:01:20]}  Be2 {[%clk 0:00:08]} 65. Ke7 {[%clk 0:01:21]}  Bf3 {[%clk 0:00:09]} 66. Kd6 {[%clk 0:01:22]}  Be2 {[%clk 0:00:10]} 67. Kc5 {[%clk 0:01:23]}  Bf3 {[%clk 0:00:11]} 68. Kb6 {[%clk 0:01:23]}  Be2 {[%clk 0:00:12]} 69. Ka5 {[%clk 0:01:24]}  Bd3 {[%clk 0:00:11]} 70. Kb4 {[%clk 0:01:24]}  Be2 {[%clk 0:00:11]} 71. Kc3 {[%clk 0:01:24]}  Bf1 {[%clk 0:00:12]} 72. Kd4 {[%clk 0:01:24]}  Bb5 {[%clk 0:00:12]} 73. Kc5 {[%clk 0:01:24]}  Bf1 {[%clk 0:00:12]} 74. Kb6 {[%clk 0:01:25]}  Be2 {[%clk 0:00:12]} 75. Kc7 {[%clk 0:01:25]}  Bf1 {[%clk 0:00:12]} 76. Kc8 {[%clk 0:01:26]}  Be2 {[%clk 0:00:13]} 77. Kd7 {[%clk 0:01:26]}  Bf1 {[%clk 0:00:14]} 78. Kd6 {[%clk 0:01:27]}  Be2 {[%clk 0:00:15]} 79. Ke7 {[%clk 0:01:27]}  Bf1 {[%clk 0:00:16]} 80. Kf7 {[%clk 0:01:28]}  Be2 {[%clk 0:00:17]} 81. Kg7 {[%clk 0:01:29]}  Bf1 {[%clk 0:00:18]} 82. Kh6 {[%clk 0:01:30]}  Be2 {[%clk 0:00:18]} 83. Kg7 {[%clk 0:01:30]} 1/2-1/2


[Site "https://www.chess.com"]

[Event "Titled Tuesday Blitz August 15 Late 2023"]
[White "Khater, Sherif"]
[Black "djathtaspogradec"]
[WhiteFideId "2034280"]
[WhiteElo "2567"]
[BlackElo "2467"]
[Result "0-1"]
[Round "7"]
[TimeControl "180+1"]
[Date "2023.08.15"]
[WhiteClock "0:00:19"]
[BlackClock "0:00:44"]
[Board "56"]

1. a3 {[%clk 0:03:00]}  d5 {[%clk 0:02:59]} 2. e3 {[%clk 0:03:00]}  e5 {[%clk 0:02:57]} 3. Nf3 {[%clk 0:03:00]}  e4 {[%clk 0:02:56]} 4. Nd4 {[%clk 0:02:59]}  c5 {[%clk 0:02:56]} 5. Ne2 {[%clk 0:02:59]}  Nf6 {[%clk 0:02:57]} 6. b4 {[%clk 0:02:57]}  cxb4 {[%clk 0:02:55]} 7. axb4 {[%clk 0:02:58]}  Bxb4 {[%clk 0:02:55]} 8. Bb2 {[%clk 0:02:58]}  O-O {[%clk 0:02:55]} 9. h3 {[%clk 0:02:59]}  Nc6 {[%clk 0:02:53]} 10. Nf4 {[%clk 0:02:59]}  Bd6 {[%clk 0:02:50]} 11. Nh5 {[%clk 0:02:58]}  Be5 {[%clk 0:02:48]} 12. Nc3 {[%clk 0:02:52]}  Re8 {[%clk 0:02:41]} 13. Nxf6+ {[%clk 0:02:51]}  Bxf6 {[%clk 0:02:41]} 14. Bb5 {[%clk 0:02:51]}  d4 {[%clk 0:02:25]} 15. exd4 {[%clk 0:02:41]}  Bxd4 {[%clk 0:02:26]} 16. O-O {[%clk 0:02:41]}  Qg5 {[%clk 0:02:23]} 17. Kh1 {[%clk 0:01:43]}  Qh4 {[%clk 0:02:22]} 18. Kh2 {[%clk 0:01:35]}  Be5+ {[%clk 0:02:12]} 19. Kg1 {[%clk 0:01:32]}  Bxh3 {[%clk 0:01:26]} 20. g3 {[%clk 0:00:59]}  Bxg3 {[%clk 0:01:19]} 21. Qe1 {[%clk 0:00:33]}  Bd6 {[%clk 0:00:46]} 22. Ra4 {[%clk 0:00:19]}  Qg4+ {[%clk 0:00:44]} 0-1


[Site "https://www.chess.com"]

[Event "Titled Tuesday Blitz August 15 Late 2023"]
[White "Bueno, Alfeu Junior Varela"]
[Black "Loay, Sameer"]
[WhiteFideId "2108879"]
[BlackFideId "8104239"]
[WhiteElo "2463"]
[BlackElo "2565"]
[Result "1-0"]
[Round "7"]
[TimeControl "180+1"]
[Date "2023.08.15"]
[WhiteClock "0:00:15"]
[BlackClock "0:00:00"]
[Board "57"]

1. e4 {[%clk 0:02:56]}  c5 {[%clk 0:03:00]} 2. Nc3 {[%clk 0:02:56]}  Nc6 {[%clk 0:03:00]} 3. f4 {[%clk 0:02:56]}  g6 {[%clk 0:02:59]} 4. Nf3 {[%clk 0:02:57]}  Bg7 {[%clk 0:02:59]} 5. Bb5 {[%clk 0:02:58]}  Nd4 {[%clk 0:02:58]} 6. O-O {[%clk 0:02:58]}  Nxb5 {[%clk 0:02:53]} 7. Nxb5 {[%clk 0:02:59]}  a6 {[%clk 0:02:52]} 8. Nc3 {[%clk 0:02:59]}  d6 {[%clk 0:02:53]} 9. d3 {[%clk 0:02:58]}  Nf6 {[%clk 0:02:53]} 10. Kh1 {[%clk 0:02:53]}  O-O {[%clk 0:02:53]} 11. Qe1 {[%clk 0:02:54]}  e6 {[%clk 0:02:48]} 12. Qh4 {[%clk 0:02:39]}  b5 {[%clk 0:02:18]} 13. f5 {[%clk 0:02:36]}  exf5 {[%clk 0:02:18]} 14. Bg5 {[%clk 0:02:35]}  h6 {[%clk 0:02:08]} 15. Bxh6 {[%clk 0:02:35]}  Ng4 {[%clk 0:01:53]} 16. Bxg7 {[%clk 0:02:32]}  Kxg7 {[%clk 0:01:48]} 17. Qg3 {[%clk 0:02:12]}  Rh8 {[%clk 0:01:12]} 18. Rae1 {[%clk 0:02:09]}  Be6 {[%clk 0:00:41]} 19. h3 {[%clk 0:01:53]}  Qf6 {[%clk 0:00:36]} 20. Qxd6 {[%clk 0:01:43]}  Rad8 {[%clk 0:00:20]} 21. Qxc5 {[%clk 0:01:41]}  f4 {[%clk 0:00:20]} 22. e5 {[%clk 0:01:21]}  Qf5 {[%clk 0:00:13]} 23. Nd4 {[%clk 0:01:20]}  Rxd4 {[%clk 0:00:08]} 24. Qxd4 {[%clk 0:01:21]}  Qh5 {[%clk 0:00:05]} 25. Qxf4 {[%clk 0:01:07]}  Nh6 {[%clk 0:00:05]} 26. Ne4 {[%clk 0:00:47]}  Bxh3 {[%clk 0:00:03]} 27. gxh3 {[%clk 0:00:27]}  Qxh3+ {[%clk 0:00:04]} 28. Qh2 {[%clk 0:00:27]}  Qc8 {[%clk 0:00:03]} 29. Kg2 {[%clk 0:00:19]}  Nf5 {[%clk 0:00:02]} 30. Qf4 {[%clk 0:00:18]}  Rh4 {[%clk 0:00:00]} 31. Qf3 {[%clk 0:00:15]} 1-0


[Site "https://www.chess.com"]

[Event "Titled Tuesday Blitz August 15 Late 2023"]
[White "Mazurkiewicz, Michal"]
[Black "Budrewicz, Krzysztof"]
[WhiteFideId "1124943"]
[BlackFideId "1127950"]
[WhiteElo "2436"]
[BlackElo "2564"]
[Result "1/2-1/2"]
[Round "7"]
[TimeControl "180+1"]
[Date "2023.08.15"]
[WhiteClock "0:00:10"]
[BlackClock "0:01:04"]
[Board "58"]

1. e4 {[%clk 0:03:00]}  e5 {[%clk 0:02:59]} 2. Nf3 {[%clk 0:03:00]}  Nc6 {[%clk 0:03:00]} 3. d3 {[%clk 0:03:00]}  Nge7 {[%clk 0:02:59]} 4. g3 {[%clk 0:03:00]}  Ng6 {[%clk 0:03:00]} 5. Bg2 {[%clk 0:03:01]}  Be7 {[%clk 0:03:00]} 6. O-O {[%clk 0:03:00]}  d6 {[%clk 0:03:00]} 7. h4 {[%clk 0:02:55]}  O-O {[%clk 0:02:59]} 8. d4 {[%clk 0:02:24]}  Bg4 {[%clk 0:02:54]} 9. d5 {[%clk 0:02:22]}  Nd4 {[%clk 0:02:50]} 10. c3 {[%clk 0:02:12]}  Nxf3+ {[%clk 0:02:46]} 11. Bxf3 {[%clk 0:02:13]}  Bh3 {[%clk 0:02:46]} 12. Bg2 {[%clk 0:02:10]}  Qd7 {[%clk 0:02:46]} 13. h5 {[%clk 0:02:06]}  Nh8 {[%clk 0:02:45]} 14. f4 {[%clk 0:01:56]}  Bxg2 {[%clk 0:02:37]} 15. Kxg2 {[%clk 0:01:56]}  exf4 {[%clk 0:02:38]} 16. Bxf4 {[%clk 0:01:51]}  f5 {[%clk 0:02:37]} 17. Nd2 {[%clk 0:01:42]}  Nf7 {[%clk 0:02:38]} 18. Qc2 {[%clk 0:00:35]}  fxe4 {[%clk 0:02:36]} 19. Nxe4 {[%clk 0:00:31]}  Rae8 {[%clk 0:02:34]} 20. Rae1 {[%clk 0:00:18]}  Qg4 {[%clk 0:02:31]} 21. Qe2 {[%clk 0:00:17]}  Qxe2+ {[%clk 0:02:24]} 22. Rxe2 {[%clk 0:00:18]}  Bd8 {[%clk 0:02:25]} 23. Rfe1 {[%clk 0:00:18]}  h6 {[%clk 0:02:24]} 24. c4 {[%clk 0:00:18]}  Ne5 {[%clk 0:02:21]} 25. Bxe5 {[%clk 0:00:18]}  Rxe5 {[%clk 0:02:21]} 26. Nc3 {[%clk 0:00:14]}  Rxh5 {[%clk 0:02:19]} 27. Re8 {[%clk 0:00:13]}  Rf5 {[%clk 0:02:17]} 28. Rxf8+ {[%clk 0:00:12]}  Kxf8 {[%clk 0:02:17]} 29. Nb5 {[%clk 0:00:05]}  a6 {[%clk 0:02:17]} 30. Nd4 {[%clk 0:00:05]}  Re5 {[%clk 0:02:09]} 31. Ne6+ {[%clk 0:00:06]}  Ke7 {[%clk 0:02:04]} 32. Rxe5 {[%clk 0:00:06]}  dxe5 {[%clk 0:02:04]} 33. Nxg7 {[%clk 0:00:07]}  Kd6 {[%clk 0:02:03]} 34. Ne6 {[%clk 0:00:07]}  Bf6 {[%clk 0:02:01]} 35. Kf3 {[%clk 0:00:08]}  e4+ {[%clk 0:02:01]} 36. Kxe4 {[%clk 0:00:08]}  Bxb2 {[%clk 0:02:02]} 37. g4 {[%clk 0:00:08]}  Bc1 {[%clk 0:02:02]} 38. c5+ {[%clk 0:00:08]}  Ke7 {[%clk 0:02:02]} 39. Nd4 {[%clk 0:00:08]}  b5 {[%clk 0:01:58]} 40. Nf5+ {[%clk 0:00:08]}  Kf6 {[%clk 0:01:57]} 41. d6 {[%clk 0:00:08]}  cxd6 {[%clk 0:01:57]} 42. c6 {[%clk 0:00:09]}  Ke6 {[%clk 0:01:50]} 43. Ng7+ {[%clk 0:00:10]}  Ke7 {[%clk 0:01:49]} 44. Kd5 {[%clk 0:00:10]}  Bf4 {[%clk 0:01:37]} 45. Nf5+ {[%clk 0:00:11]}  Kd8 {[%clk 0:01:34]} 46. Nd4 {[%clk 0:00:12]}  Kc8 {[%clk 0:01:32]} 47. Ne6 {[%clk 0:00:11]}  Bh2 {[%clk 0:01:31]} 48. Nd4 {[%clk 0:00:12]}  Kc7 {[%clk 0:01:29]} 49. Nf5 {[%clk 0:00:12]}  Bf4 {[%clk 0:01:28]} 50. Ng7 {[%clk 0:00:12]}  Kb6 {[%clk 0:01:22]} 51. Ne8 {[%clk 0:00:08]}  b4 {[%clk 0:01:15]} 52. Nxd6 {[%clk 0:00:08]}  a5 {[%clk 0:01:12]} 53. Nc4+ {[%clk 0:00:09]}  Kb5 {[%clk 0:01:12]} 54. Nd6+ {[%clk 0:00:07]}  Kb6 {[%clk 0:01:11]} 55. Nc4+ {[%clk 0:00:06]}  Ka6 {[%clk 0:01:12]} 56. Ne5 {[%clk 0:00:06]}  a4 {[%clk 0:01:08]} 57. Nd3 {[%clk 0:00:07]}  b3 {[%clk 0:01:05]} 58. axb3 {[%clk 0:00:06]}  a3 {[%clk 0:01:06]} 59. Kc4 {[%clk 0:00:04]}  Bd6 {[%clk 0:01:02]} 60. Nc1 {[%clk 0:00:03]}  Kb6 {[%clk 0:01:02]} 61. b4 {[%clk 0:00:04]}  Kxc6 {[%clk 0:01:02]} 62. Kb3 {[%clk 0:00:04]}  Bf4 {[%clk 0:01:02]} 63. Na2 {[%clk 0:00:04]}  Kd5 {[%clk 0:01:01]} 64. Kxa3 {[%clk 0:00:05]}  Ke4 {[%clk 0:01:01]} 65. Nc3+ {[%clk 0:00:05]}  Kf3 {[%clk 0:01:02]} 66. Nd5 {[%clk 0:00:06]}  Bd6 {[%clk 0:01:02]} 67. Ka4 {[%clk 0:00:06]}  Kxg4 {[%clk 0:01:02]} 68. b5 {[%clk 0:00:06]}  h5 {[%clk 0:01:02]} 69. Nf6+ {[%clk 0:00:07]}  Kg5 {[%clk 0:01:02]} 70. Nxh5 {[%clk 0:00:07]}  Kxh5 {[%clk 0:01:03]} 71. b6 {[%clk 0:00:08]}  Kg6 {[%clk 0:01:03]} 72. Kb5 {[%clk 0:00:08]}  Kf7 {[%clk 0:01:03]} 73. Kc6 {[%clk 0:00:09]}  Bf4 {[%clk 0:01:04]} 74. b7 {[%clk 0:00:10]}  Ke7 {[%clk 0:01:04]} 75. b8=N {[%clk 0:00:10]} 1/2-1/2


[Site "https://www.chess.com"]

[Event "Titled Tuesday Blitz August 15 Late 2023"]
[White "Kashefi, Amir Hosein"]
[Black "Bullen, Alex"]
[WhiteFideId "12557935"]
[BlackFideId "1801627"]
[WhiteElo "2546"]
[BlackElo "2344"]
[Result "0-1"]
[Round "7"]
[TimeControl "180+1"]
[Date "2023.08.15"]
[WhiteClock "0:00:00"]
[BlackClock "0:00:12"]
[Board "60"]

1. e4 {[%clk 0:02:59]}  c6 {[%clk 0:02:59]} 2. Nf3 {[%clk 0:02:59]}  d5 {[%clk 0:03:00]} 3. Nc3 {[%clk 0:03:00]}  dxe4 {[%clk 0:03:00]} 4. Nxe4 {[%clk 0:03:00]}  Nf6 {[%clk 0:03:01]} 5. Qe2 {[%clk 0:03:01]}  Nxe4 {[%clk 0:03:00]} 6. Qxe4 {[%clk 0:03:01]}  Nd7 {[%clk 0:03:00]} 7. Bc4 {[%clk 0:03:01]}  Nf6 {[%clk 0:03:00]} 8. Ne5 {[%clk 0:03:01]}  e6 {[%clk 0:03:01]} 9. Qe2 {[%clk 0:03:01]}  b5 {[%clk 0:03:01]} 10. Bb3 {[%clk 0:02:45]}  Qc7 {[%clk 0:03:00]} 11. d4 {[%clk 0:02:43]}  Bd6 {[%clk 0:03:00]} 12. a4 {[%clk 0:02:37]}  a6 {[%clk 0:02:53]} 13. O-O {[%clk 0:02:25]}  O-O {[%clk 0:02:51]} 14. Bg5 {[%clk 0:02:23]}  Bb7 {[%clk 0:02:39]} 15. c3 {[%clk 0:02:04]}  c5 {[%clk 0:02:35]} 16. axb5 {[%clk 0:01:50]}  axb5 {[%clk 0:02:27]} 17. Rxa8 {[%clk 0:01:40]}  Rxa8 {[%clk 0:02:21]} 18. Bxf6 {[%clk 0:01:40]}  gxf6 {[%clk 0:02:21]} 19. Nxf7 {[%clk 0:01:32]}  Kxf7 {[%clk 0:02:05]} 20. Qxe6+ {[%clk 0:01:29]}  Kg7 {[%clk 0:02:00]} 21. dxc5 {[%clk 0:01:17]}  Bxh2+ {[%clk 0:01:50]} 22. Kh1 {[%clk 0:01:17]}  Be5 {[%clk 0:01:51]} 23. Rd1 {[%clk 0:01:10]}  Qc8 {[%clk 0:01:20]} 24. Rd7+ {[%clk 0:00:58]}  Kh8 {[%clk 0:01:19]} 25. Bd1 {[%clk 0:00:06]}  Ra1 {[%clk 0:00:58]} 26. Qg4 {[%clk 0:00:03]}  Qf8 {[%clk 0:00:37]} 27. Kg1 {[%clk 0:00:02]}  Bc8 {[%clk 0:00:29]} 28. c6 {[%clk 0:00:02]}  Bxd7 {[%clk 0:00:26]} 29. cxd7 {[%clk 0:00:02]}  Qd8 {[%clk 0:00:19]} 30. g3 {[%clk 0:00:01]}  Ra7 {[%clk 0:00:18]} 31. Bc2 {[%clk 0:00:01]}  Rxd7 {[%clk 0:00:17]} 32. Qf5 {[%clk 0:00:01]}  Rg7 {[%clk 0:00:16]} 33. Kg2 {[%clk 0:00:01]}  Qd2 {[%clk 0:00:15]} 34. Be4 {[%clk 0:00:02]}  Qg5 {[%clk 0:00:14]} 35. Qc8+ {[%clk 0:00:01]}  Rg8 {[%clk 0:00:14]} 36. Qd7 {[%clk 0:00:00]}  Qg7 {[%clk 0:00:12]} 0-1


[Site "https://www.chess.com"]

[Event "Titled Tuesday Blitz August 15 Late 2023"]
[White "Rustemov, Alexander"]
[Black "Seletsky, Grigory"]
[WhiteFideId "4119002"]
[BlackFideId "14112191"]
[WhiteElo "2756"]
[BlackElo "2488"]
[Result "1/2-1/2"]
[Round "7"]
[TimeControl "180+1"]
[Date "2023.08.15"]
[WhiteClock "0:00:10"]
[BlackClock "0:00:19"]
[Board "64"]

1. d4 {[%clk 0:02:56]}  c5 {[%clk 0:02:59]} 2. d5 {[%clk 0:02:56]}  e5 {[%clk 0:03:00]} 3. c4 {[%clk 0:02:55]}  d6 {[%clk 0:03:01]} 4. Nc3 {[%clk 0:02:55]}  Nf6 {[%clk 0:03:00]} 5. e4 {[%clk 0:02:54]}  Be7 {[%clk 0:03:01]} 6. Bd3 {[%clk 0:02:53]}  O-O {[%clk 0:03:02]} 7. h3 {[%clk 0:02:53]}  Na6 {[%clk 0:03:03]} 8. g4 {[%clk 0:02:51]}  Nc7 {[%clk 0:03:03]} 9. a4 {[%clk 0:02:50]}  a6 {[%clk 0:03:03]} 10. Nge2 {[%clk 0:02:46]}  Rb8 {[%clk 0:02:58]} 11. Ng3 {[%clk 0:02:45]}  g6 {[%clk 0:02:56]} 12. Bh6 {[%clk 0:02:44]}  Re8 {[%clk 0:02:55]} 13. Qd2 {[%clk 0:02:42]}  Nd7 {[%clk 0:02:45]} 14. Kf1 {[%clk 0:02:32]}  Bh4 {[%clk 0:02:32]} 15. Kg2 {[%clk 0:02:32]}  f6 {[%clk 0:02:28]} 16. Be3 {[%clk 0:02:22]}  Nf8 {[%clk 0:02:24]} 17. a5 {[%clk 0:02:18]}  Bd7 {[%clk 0:02:23]} 18. b4 {[%clk 0:02:12]}  cxb4 {[%clk 0:02:21]} 19. Na4 {[%clk 0:02:10]}  Bg5 {[%clk 0:02:12]} 20. Nb6 {[%clk 0:02:06]}  Bxe3 {[%clk 0:02:09]} 21. Qxe3 {[%clk 0:02:06]}  Na8 {[%clk 0:02:08]} 22. Nxa8 {[%clk 0:02:01]}  Rxa8 {[%clk 0:02:07]} 23. Rhb1 {[%clk 0:02:02]}  Qc7 {[%clk 0:02:01]} 24. Rxb4 {[%clk 0:02:00]}  Rab8 {[%clk 0:02:01]} 25. Qb6 {[%clk 0:01:58]}  Rec8 {[%clk 0:01:58]} 26. Qxc7 {[%clk 0:01:58]}  Rxc7 {[%clk 0:01:59]} 27. Rb6 {[%clk 0:01:58]}  Be8 {[%clk 0:01:54]} 28. Rxd6 {[%clk 0:01:57]}  Nd7 {[%clk 0:01:54]} 29. h4 {[%clk 0:01:51]}  Kf8 {[%clk 0:01:53]} 30. g5 {[%clk 0:01:51]}  fxg5 {[%clk 0:01:52]} 31. hxg5 {[%clk 0:01:51]}  Bf7 {[%clk 0:01:52]} 32. Rh1 {[%clk 0:01:42]}  Ke7 {[%clk 0:01:53]} 33. Rb6 {[%clk 0:01:39]}  Nxb6 {[%clk 0:01:43]} 34. axb6 {[%clk 0:01:40]}  Rcc8 {[%clk 0:01:43]} 35. Kf3 {[%clk 0:01:34]}  Bg8 {[%clk 0:01:41]} 36. Ke3 {[%clk 0:01:33]}  Kd6 {[%clk 0:01:41]} 37. f4 {[%clk 0:01:32]}  exf4+ {[%clk 0:01:40]} 38. Kxf4 {[%clk 0:01:30]}  Kc5 {[%clk 0:01:40]} 39. Rb1 {[%clk 0:01:28]}  Kd4 {[%clk 0:01:35]} 40. Rb3 {[%clk 0:01:11]}  Rf8+ {[%clk 0:01:34]} 41. Kg4 {[%clk 0:01:12]}  Rbc8 {[%clk 0:01:17]} 42. Ne2+ {[%clk 0:01:11]}  Ke5 {[%clk 0:01:17]} 43. Ng1 {[%clk 0:01:09]}  Kd6 {[%clk 0:01:08]} 44. Nf3 {[%clk 0:01:09]}  Rce8 {[%clk 0:01:06]} 45. e5+ {[%clk 0:01:01]}  Rxe5 {[%clk 0:01:03]} 46. Nxe5 {[%clk 0:01:01]}  Kxe5 {[%clk 0:01:03]} 47. Be2 {[%clk 0:00:56]}  Rf4+ {[%clk 0:00:57]} 48. Kg3 {[%clk 0:00:56]}  Re4 {[%clk 0:00:55]} 49. Kf2 {[%clk 0:00:54]}  Rf4+ {[%clk 0:00:48]} 50. Ke3 {[%clk 0:00:53]}  Re4+ {[%clk 0:00:47]} 51. Kd2 {[%clk 0:00:53]}  Rd4+ {[%clk 0:00:47]} 52. Bd3 {[%clk 0:00:52]}  Bxd5 {[%clk 0:00:46]} 53. cxd5 {[%clk 0:00:50]}  Rxd5 {[%clk 0:00:46]} 54. Ke3 {[%clk 0:00:37]}  Rd7 {[%clk 0:00:43]} 55. Be4 {[%clk 0:00:36]}  Re7 {[%clk 0:00:43]} 56. Rd3 {[%clk 0:00:29]}  Rf7 {[%clk 0:00:36]} 57. Rd5+ {[%clk 0:00:29]}  Ke6 {[%clk 0:00:35]} 58. Kd4 {[%clk 0:00:28]}  Rf2 {[%clk 0:00:24]} 59. Rc5 {[%clk 0:00:25]}  Rb2 {[%clk 0:00:24]} 60. Bxb7 {[%clk 0:00:19]}  Rxb6 {[%clk 0:00:24]} 61. Bc8+ {[%clk 0:00:19]}  Kd6 {[%clk 0:00:21]} 62. Rd5+ {[%clk 0:00:18]}  Kc7 {[%clk 0:00:20]} 63. Bh3 {[%clk 0:00:12]}  Rd6 {[%clk 0:00:20]} 64. Ke5 {[%clk 0:00:10]}  Rxd5+ {[%clk 0:00:20]} 65. Kxd5 {[%clk 0:00:11]}  Kd8 {[%clk 0:00:21]} 66. Ke6 {[%clk 0:00:10]}  Ke8 {[%clk 0:00:20]} 67. Bf1 {[%clk 0:00:10]}  a5 {[%clk 0:00:19]} 68. Bb5+ {[%clk 0:00:11]}  Kf8 {[%clk 0:00:19]} 69. Kf6 {[%clk 0:00:11]}  Kg8 {[%clk 0:00:19]} 70. Ba4 {[%clk 0:00:10]}  h6 {[%clk 0:00:18]} 71. gxh6 {[%clk 0:00:08]}  Kh8 {[%clk 0:00:18]} 72. Kg5 {[%clk 0:00:07]}  Kg8 {[%clk 0:00:18]} 73. Bb5 {[%clk 0:00:02]}  Kh8 {[%clk 0:00:18]} 74. Kxg6 {[%clk 0:00:02]}  a4 {[%clk 0:00:17]} 75. Bxa4 {[%clk 0:00:01]}  Kg8 {[%clk 0:00:16]} 76. Kg5 {[%clk 0:00:02]}  Kh7 {[%clk 0:00:16]} 77. Bb3 {[%clk 0:00:02]}  Kh8 {[%clk 0:00:16]} 78. Bc2 {[%clk 0:00:03]}  Kg8 {[%clk 0:00:16]} 79. Bg6 {[%clk 0:00:04]}  Kh8 {[%clk 0:00:16]} 80. Bf5 {[%clk 0:00:05]}  Kg8 {[%clk 0:00:16]} 81. Be4 {[%clk 0:00:06]}  Kh8 {[%clk 0:00:16]} 82. Bd3 {[%clk 0:00:06]}  Kg8 {[%clk 0:00:17]} 83. Bc2 {[%clk 0:00:07]}  Kh8 {[%clk 0:00:18]} 84. Kh5 {[%clk 0:00:08]}  Kg8 {[%clk 0:00:18]} 85. Kg6 {[%clk 0:00:09]}  Kh8 {[%clk 0:00:19]} 86. Bb1 {[%clk 0:00:09]}  Kg8 {[%clk 0:00:19]} 87. Bd3 {[%clk 0:00:09]}  Kh8 {[%clk 0:00:19]} 88. h7 {[%clk 0:00:10]} 1/2-1/2


[Site "https://www.chess.com"]